bitfinex-derivatives/quotes_BTCF0:USTF0_20260107
["timestamp","ask_amount","ask_price","bid_price","bid_amount"]
[1767768318663,0.010793,92711.0,92703.0,0.1832414]
[1767768318963,0.03570198,92721.0,92703.0,0.1832414]
[1767768319563,0.010793,92710.0,92703.0,0.1832414]
[1767768319764,0.03570198,92721.0,92703.0,0.1832414]
[1767768321165,0.010793,92710.0,92703.0,0.1832414]
[1767768321367,0.03570198,92721.0,92703.0,0.1832414]
[1767768321867,0.03570198,92721.0,92703.0,0.0915214]
[1767768322166,0.03570198,92721.0,92704.0,0.09172]
[1767768324370,0.010793,92712.0,92704.0,0.09172]
[1767768324672,0.03570198,92721.0,92704.0,0.09172]
[1767768324872,0.010793,92710.0,92704.0,0.09172]
[1767768325068,0.03570198,92721.0,92704.0,0.09172]
[1767768327173,0.010793,92712.0,92704.0,0.09172]
[1767768327472,0.03570198,92726.0,92705.0,0.0915214]
[1767768327672,0.09172,92727.0,92705.0,0.0915214]
[1767768327873,0.12742198,92727.0,92705.0,0.0915214]
[1767768328074,0.010793,92713.0,92705.0,0.0915214]
[1767768328262,0.010791,92726.0,92705.0,0.0915214]
[1767768328463,0.010793,92713.0,92705.0,0.0915214]
[1767768328671,0.010791,92725.0,92705.0,0.0915214]
[1767768329276,0.010791,92724.0,92705.0,0.0915214]
[1767768329463,0.010793,92711.0,92705.0,0.0915214]
[1767768329663,0.010791,92723.0,92705.0,0.0915214]
[1767768331174,0.010793,92711.0,92705.0,0.0915214]
[1767768331375,0.010791,92723.0,92705.0,0.0915214]
[1767768332179,0.010793,92711.0,92705.0,0.0915214]
[1767768332369,0.010791,92723.0,92705.0,0.0915214]
[1767768333178,0.09172,92727.0,92705.0,0.0915214]
[1767768333377,0.010791,92725.0,92706.0,0.010793]
[1767768333580,0.010791,92725.0,92707.0,0.09999846]
[1767768333772,0.010791,92723.0,92707.0,0.09999846]
[1767768334380,0.010792,92719.0,92707.0,0.09999846]
[1767768339885,0.010792,92717.0,92707.0,0.09999846]
[1767768342983,0.010792,92720.0,92707.0,0.09999846]
[1767768345679,0.010792,92716.0,92707.0,0.09999846]
[1767768347485,0.010792,92714.0,92707.0,0.09999846]
[1767768347677,0.03514992,92726.0,92707.0,0.09999846]
[1767768348086,0.010792,92715.0,92707.0,0.09999846]
[1767768348384,0.03514992,92726.0,92707.0,0.09999846]
[1767768349187,0.010792,92715.0,92707.0,0.09999846]
[1767768349381,0.03514992,92726.0,92707.0,0.09999846]
[1767768349582,0.03514992,92725.0,92707.0,0.09999846]
[1767768349789,0.010792,92716.0,92707.0,0.09999846]
[1767768351788,0.010792,92714.0,92707.0,0.09999846]
[1767768351984,0.03514992,92725.0,92707.0,0.09999846]
[1767768352487,0.010792,92714.0,92707.0,0.09999846]
[1767768352690,0.03514992,92725.0,92707.0,0.09999846]
[1767768352884,0.010792,92716.0,92707.0,0.09999846]
[1767768354992,0.010792,92714.0,92707.0,0.09999846]
[1767768355191,0.010791,92727.0,92707.0,0.09999846]
[1767768355386,0.04594092,92727.0,92707.0,0.09999846]
[1767768357196,0.010792,92715.0,92707.0,0.09999846]
[1767768359597,0.010792,92715.0,92707.0,0.09892846]
[1767768360085,0.010793,92713.0,92707.0,0.09892846]
[1767768360285,0.010791,92726.0,92707.0,0.09892846]
[1767768360581,0.010793,92713.0,92707.0,0.09892846]
[1767768360783,0.010791,92725.0,92707.0,0.09892846]
[1767768362199,0.010792,92714.0,92707.0,0.09892846]
[1767768362400,0.010791,92725.0,92707.0,0.09892846]
[1767768363196,0.010792,92714.0,92707.0,0.09892846]
[1767768363397,0.010791,92725.0,92707.0,0.09892846]
[1767768364402,0.010792,92716.0,92707.0,0.09892846]
[1767768364701,0.010791,92725.0,92707.0,0.09892846]
[1767768366199,0.010792,92715.0,92707.0,0.09892846]
[1767768370703,0.010792,92718.0,92707.0,0.09892846]
[1767768371001,0.010792,92718.0,92708.0,0.09148526]
[1767768371203,0.010792,92718.0,92709.0,0.09770337]
[1767768371396,0.00215683,92729.0,92709.0,0.09770337]
[1767768371601,0.010792,92720.0,92709.0,0.09770337]
[1767768372403,0.010792,92720.0,92710.0,0.09148526]
[1767768373004,0.010792,92720.0,92711.0,0.09770337]
[1767768374300,0.010792,92718.0,92711.0,0.09770337]
[1767768377410,0.010792,92721.0,92711.0,0.09770337]
[1767768378611,0.010791,92725.0,92711.0,0.09770337]
[1767768379707,0.010791,92723.0,92711.0,0.09770337]
[1767768381905,0.010792,92719.0,92711.0,0.09770337]
[1767768388908,0.00215683,92729.0,92711.0,0.09770337]
[1767768389118,0.09172,92737.0,92720.0,0.09770337]
[1767768389500,0.01079,92732.0,92720.0,0.09770337]
[1767768390204,0.010791,92730.0,92720.0,0.09770337]
[1767768391413,0.010791,92730.0,92720.0,0.18918863]
[1767768391910,0.09172,92737.0,92721.0,0.09769804]
[1767768392112,0.09381355,92751.0,92728.0,0.09769804]
[1767768392113,0.09172,92746.0,92728.0,0.09769804]
[1767768392407,0.09172,92746.0,92731.0,0.09769804]
[1767768392604,0.010789,92743.0,92731.0,0.09769804]
[1767768393412,0.09172,92746.0,92723.0,0.09769804]
[1767768393614,0.010791,92728.0,92718.0,0.0591365]
[1767768393798,0.010791,92722.0,92714.0,0.09172]
[1767768394002,0.09148526,92730.0,92714.0,0.09172]
[1767768394306,0.09148526,92730.0,92715.0,0.16103039]
[1767768394707,0.010791,92725.0,92715.0,0.16103039]
[1767768395010,0.09148526,92730.0,92715.0,0.16103039]
[1767768396912,0.010791,92726.0,92715.0,0.16103039]
[1767768397210,0.09148526,92730.0,92715.0,0.16103039]
[1767768397603,0.09381355,92735.0,92715.0,0.16103039]
[1767768398213,0.010791,92726.0,92715.0,0.16103039]
[1767768398408,0.09381355,92735.0,92715.0,0.16103039]
[1767768400202,0.010791,92727.0,92715.0,0.16103039]
[1767768402314,0.010791,92727.0,92715.0,0.25872843]
[1767768402514,0.09172,92736.0,92716.0,0.09769804]
[1767768402714,0.01079,92734.0,92716.0,0.09769804]
[1767768402915,0.09172,92736.0,92720.0,0.1891833]
[1767768403211,0.010791,92729.0,92720.0,0.1891833]
[1767768404116,0.010791,92729.0,92720.0,0.09148526]
[1767768404817,0.01079,92733.0,92715.0,0.09769804]
[1767768405117,0.01079,92733.0,92716.0,0.16102601]
[1767768405318,0.01079,92733.0,92717.0,0.09769804]
[1767768405713,0.09172,92736.0,92717.0,0.09769804]
[1767768406115,0.01079,92731.0,92717.0,0.09769804]
[1767768407810,0.09172,92736.0,92717.0,0.09769804]
[1767768408011,0.010791,92727.0,92717.0,0.09769804]
[1767768408424,0.010791,92727.0,92714.0,0.09172]
[1767768408727,0.010791,92725.0,92715.0,0.16197217]
[1767768408922,0.09172,92736.0,92715.0,0.16197217]
[1767768409315,0.010791,92727.0,92715.0,0.16197217]
[1767768410624,0.010791,92727.0,92715.0,0.25967021]
[1767768415123,0.010791,92725.0,92715.0,0.25967021]
[1767768415314,0.09172,92736.0,92715.0,0.25967021]
[1767768415630,0.010791,92725.0,92715.0,0.25967021]
[1767768415923,0.09172,92736.0,92715.0,0.25967021]
[1767768417130,0.010791,92725.0,92715.0,0.25967021]
[1767768417319,0.09172,92736.0,92715.0,0.25967021]
[1767768418117,0.010791,92725.0,92715.0,0.25967021]
[1767768418317,0.09172,92736.0,92715.0,0.25967021]
[1767768419127,0.010791,92725.0,92715.0,0.25967021]
[1767768419318,0.09172,92736.0,92715.0,0.25967021]
[1767768419821,0.09172,92736.0,92716.0,0.09850686]
[1767768420228,0.010791,92725.0,92716.0,0.09850686]
[1767768420429,0.09172,92736.0,92716.0,0.09850686]
[1767768421027,0.010791,92725.0,92716.0,0.09850686]
[1767768421228,0.10251,92736.0,92716.0,0.09850686]
[1767768422130,0.010791,92723.0,92716.0,0.09850686]
[1767768422433,0.0308713,92735.0,92716.0,0.09850686]
[1767768422729,0.010791,92723.0,92716.0,0.09850686]
[1767768422929,0.0308713,92735.0,92716.0,0.09850686]
[1767768425229,0.010791,92725.0,92716.0,0.09850686]
[1767768426731,0.010791,92728.0,92716.0,0.09850686]
[1767768426939,0.0308713,92739.0,92714.0,0.09172]
[1767768426940,0.010789,92740.0,92722.0,0.09555506]
[1767768427127,0.09172,92742.0,92722.0,0.09555506]
[1767768427327,0.01079,92738.0,92722.0,0.09555506]
[1767768427521,0.09172,92742.0,92722.0,0.09555506]
[1767768427522,0.01079,92736.0,92722.0,0.09555506]
[1767768428227,0.01079,92736.0,92722.0,0.1838542]
[1767768429526,0.01079,92736.0,92723.0,0.09555506]
[1767768431333,0.01079,92734.0,92723.0,0.09555506]
[1767768431637,0.09213307,92731.0,92716.0,0.09172]
[1767768432534,0.010791,92725.0,92716.0,0.09172]
[1767768434234,0.09213307,92731.0,92716.0,0.09172]
[1767768434441,0.010791,92725.0,92716.0,0.09172]
[1767768434939,0.09213307,92742.0,92717.0,0.06090327]
[1767768435239,0.09172,92741.0,92717.0,0.06090327]
[1767768435624,0.18385307,92741.0,92717.0,0.06090327]
[1767768435824,0.09213307,92740.0,92717.0,0.06090327]
[1767768436144,0.01079,92732.0,92717.0,0.06090327]
[1767768438645,0.01079,92736.0,92717.0,0.06090327]
[1767768439035,0.01079,92732.0,92717.0,0.06090327]
[1767768444745,0.01079,92736.0,92717.0,0.06090327]
[1767768445842,0.09172,92739.0,92717.0,0.06090327]
[1767768446150,0.01079,92734.0,92717.0,0.06090327]
[1767768449354,0.01079,92737.0,92717.0,0.07169527]
[1767768449549,0.010789,92740.0,92717.0,0.06090327]
[1767768449750,0.01079,92737.0,92720.0,0.03825322]
[1767768462470,0.010789,92740.0,92720.0,0.03825322]
[1767768462772,0.010789,92746.0,92722.0,0.03781876]
[1767768462968,0.010789,92746.0,92723.0,0.03781876]
[1767768463175,0.010789,92746.0,92724.0,0.03781876]
[1767768463571,0.010789,92746.0,92724.0,0.04860976]
[1767768463772,0.010789,92746.0,92724.0,0.03781876]
[1767768463972,0.010789,92743.0,92724.0,0.03781876]
[1767768464273,0.10580129,92743.0,92724.0,0.03781876]
[1767768464472,0.09501229,92743.0,92718.0,0.03780856]
[1767768464666,0.09501229,92734.0,92719.0,0.09172]
[1767768464867,0.09501229,92734.0,92720.0,0.09172]
[1767768465278,0.09501229,92734.0,92721.0,0.16141655]
[1767768465467,0.01079,92735.0,92721.0,0.16141655]
[1767768466167,0.13568176,92739.0,92721.0,0.16141655]
[1767768466569,0.010789,92743.0,92722.0,0.03762629]
[1767768466765,0.09172,92746.0,92724.0,0.03762629]
[1767768467076,0.102509,92747.0,92724.0,0.03762629]
[1767768467484,0.19752129,92747.0,92724.0,0.03762629]
[1767768467678,0.18673229,92747.0,92724.0,0.03762629]
[1767768468680,0.18673229,92747.0,92725.0,0.04903069]
[1767768468873,0.18673229,92747.0,92725.0,0.03823969]
[1767768470480,0.010789,92746.0,92725.0,0.03823969]
[1767768470674,0.09501229,92748.0,92725.0,0.03823969]
[1767768471783,0.12489176,92744.0,92723.0,0.010791]
[1767768472082,0.09172,92749.0,92724.0,0.03763945]
[1767768472282,0.09501229,92748.0,92724.0,0.03763945]
[1767768472490,0.09501229,92748.0,92725.0,0.010791]
[1767768472684,0.12489176,92748.0,92725.0,0.010791]
[1767768473086,0.09501229,92747.0,92725.0,0.010791]
[1767768473290,0.12489176,92747.0,92725.0,0.010791]
[1767768473483,0.09501229,92746.0,92725.0,0.010791]
[1767768474586,0.09501229,92746.0,92725.0,0.04842902]
[1767768476981,0.12489176,92746.0,92725.0,0.04842902]
[1767768477173,0.09501229,92743.0,92722.0,0.09621404]
[1767768477373,0.09501229,92743.0,92722.0,0.04830888]
[1767768478481,0.09501229,92743.0,92722.0,0.13497672]
[1767768478684,0.09501229,92742.0,92722.0,0.08666784]
[1767768478884,0.09501229,92742.0,92721.0,0.010791]
[1767768479691,0.09488477,92736.0,92720.0,0.15243765]
[1767768479893,0.09172,92749.0,92720.0,0.15243765]
[1767768480083,0.09172,92749.0,92721.0,0.16270854]
[1767768480789,0.010789,92744.0,92721.0,0.16270854]
[1767768481887,0.0963519,92743.0,92721.0,0.16270854]
[1767768483496,0.0963519,92743.0,92722.0,0.010791]
[1767768484493,0.0963519,92743.0,92730.0,0.09143988]
[1767768485387,0.13744815,92742.0,92730.0,0.09143988]
[1767768485694,0.1071409,92740.0,92730.0,0.09143988]
[1767768485890,0.1071409,92740.0,92720.0,0.24387753]
[1767768486083,0.0963519,92737.0,92720.0,0.15243765]
[1767768486283,0.01079,92734.0,92721.0,0.16243644]
[1767768486483,0.0963519,92737.0,92721.0,0.16243644]
[1767768487278,0.01079,92734.0,92721.0,0.16243644]
[1767768487492,0.0963519,92737.0,92721.0,0.16243644]
[1767768487982,0.0963519,92736.0,92721.0,0.16136644]
[1767768488191,0.01079,92734.0,92721.0,0.16136644]
[1767768488387,0.0963519,92736.0,92721.0,0.16136644]
[1767768491894,0.1071419,92736.0,92721.0,0.16136644]
[1767768498198,0.01079,92736.0,92721.0,0.16136644]
[1767768500306,0.01079,92739.0,92721.0,0.16136644]
[1767768501702,0.01079,92737.0,92721.0,0.16136644]
[1767768504406,0.04109625,92740.0,92721.0,0.16136644]
[1767768504607,0.010789,92740.0,92721.0,0.16136644]
[1767768506108,0.010789,92740.0,92722.0,0.09172]
[1767768506498,0.1071409,92740.0,92722.0,0.09172]
[1767768508009,0.01079,92738.0,92722.0,0.09172]
[1767768508607,0.01079,92736.0,92722.0,0.09172]
[1767768508806,0.01079,92736.0,92722.0,0.17995872]
[1767768523818,0.01079,92739.0,92722.0,0.17995872]
[1767768524419,0.01079,92739.0,92729.0,0.09143988]
[1767768525824,0.01079,92739.0,92722.0,0.17995872]
[1767768526316,0.12687371,92745.0,92729.0,0.09143988]
[1767768526823,0.010789,92745.0,92729.0,0.09143988]
[1767768527116,0.010788,92748.0,92729.0,0.09143988]
[1767768527627,0.010788,92748.0,92730.0,0.09866396]
[1767768533125,0.010788,92754.0,92739.0,0.09866396]
[1767768533525,0.010788,92752.0,92738.0,0.09143988]
[1767768534128,0.010788,92752.0,92733.0,0.09866396]
[1767768534630,0.010788,92752.0,92740.0,0.09143988]
[1767768536535,0.010788,92750.0,92740.0,0.09143988]
[1767768537724,0.010788,92750.0,92733.0,0.09866396]
[1767768538034,0.010788,92750.0,92740.0,0.09143988]
[1767768544536,0.010788,92750.0,92733.0,0.09866396]
[1767768546636,0.09172,92755.0,92733.0,0.09866396]
[1767768546832,0.010788,92754.0,92735.0,0.09158642]
[1767768547331,0.010788,92754.0,92737.0,0.09158642]
[1767768549340,0.010787,92757.0,92737.0,0.09158642]
[1767768550531,0.09383614,92759.0,92737.0,0.09158642]
[1767768550738,0.010788,92755.0,92737.0,0.15021152]
[1767768551049,0.010788,92753.0,92737.0,0.15021152]
[1767768553131,0.010787,92756.0,92737.0,0.15021152]
[1767768553444,0.010787,92756.0,92738.0,0.09158642]
[1767768554745,0.01294314,92759.0,92738.0,0.09158642]
[1767768559241,0.01294314,92759.0,92738.0,0.10237642]
[1767768559441,0.09168,92767.0,92740.0,0.09158642]
[1767768559842,0.010787,92762.0,92740.0,0.09158642]
[1767768560034,0.010787,92760.0,92740.0,0.09158642]
[1767768560634,0.010787,92758.0,92740.0,0.09158642]
[1767768561842,0.010787,92761.0,92740.0,0.09158642]
[1767768564545,0.09370489,92762.0,92740.0,0.09158642]
[1767768564733,0.010787,92757.0,92737.0,0.0586251]
[1767768564933,0.11746107,92756.0,92738.0,0.09168]
[1767768565140,0.11746107,92756.0,92738.0,0.25405781]
[1767768565343,0.11746107,92756.0,92738.0,0.09168]
[1767768565644,0.11746107,92756.0,92739.0,0.16237781]
[1767768566134,0.010788,92753.0,92739.0,0.16237781]
[1767768566852,0.11746107,92756.0,92739.0,0.16237781]
[1767768567147,0.11746107,92755.0,92739.0,0.16237781]
[1767768567649,0.010788,92751.0,92739.0,0.16237781]
[1767768569751,0.010788,92749.0,92739.0,0.16237781]
[1767768571949,0.010789,92747.0,92739.0,0.16237781]
[1767768572147,0.09370489,92755.0,92739.0,0.16237781]
[1767768572351,0.1150474,92754.0,92738.0,8.1e-07]
[1767768572539,0.02127721,92752.0,92738.0,8.1e-07]
[1767768572739,0.02127721,92752.0,92739.0,0.16150191]
[1767768572938,0.09377019,92754.0,92739.0,0.16150191]
[1767768573141,0.010789,92747.0,92739.0,0.16150191]
[1767768573944,0.010788,92750.0,92739.0,0.16150191]
[1767768581649,0.1150474,92766.0,92740.0,0.09121118]
[1767768581849,0.010788,92753.0,92740.0,0.09121118]
[1767768582038,0.2067274,92766.0,92740.0,0.09121118]
[1767768582242,0.010788,92753.0,92740.0,0.09121118]
[1767768584750,0.010788,92751.0,92740.0,0.09121118]
[1767768586858,0.010788,92749.0,92740.0,0.09121118]
[1767768587061,0.010788,92749.0,92738.0,8.1e-07]
[1767768587447,0.010788,92749.0,92739.0,0.16169987]
[1767768589261,0.010788,92752.0,92739.0,0.16169987]
[1767768590060,0.010788,92750.0,92739.0,0.16169987]
[1767768592371,0.010788,92753.0,92739.0,0.16169987]
[1767768594166,0.010788,92753.0,92739.0,0.25291105]
[1767768594370,0.010787,92757.0,92740.0,0.09121118]
[1767768596167,0.02127721,92763.0,92740.0,0.09121118]
[1767768596368,0.09377019,92765.0,92740.0,0.09121118]
[1767768596565,0.1150474,92765.0,92740.0,0.09121118]
[1767768596867,0.02127721,92764.0,92740.0,0.09121118]
[1767768597071,0.010788,92754.0,92740.0,0.09121118]
[1767768597468,0.010788,92752.0,92740.0,0.09121118]
[1767768599770,0.010788,92750.0,92738.0,8.1e-07]
[1767768600268,0.010788,92750.0,92739.0,0.16194076]
[1767768600967,0.010788,92753.0,92739.0,0.16194076]
[1767768601369,0.11595586,92762.0,92739.0,0.16194076]
[1767768601370,0.010788,92751.0,92739.0,0.16194076]
[1767768602770,0.12195618,92755.0,92739.0,0.16194076]
[1767768602961,0.010789,92746.0,92739.0,0.16194076]
[1767768603160,0.010788,92749.0,92739.0,0.16194076]
[1767768608179,0.010788,92752.0,92739.0,0.16194076]
[1767768608361,0.02313038,92759.0,92740.0,0.09486042]
[1767768608362,0.010787,92759.0,92740.0,0.09486042]
[1767768609467,0.010787,92759.0,92749.0,0.09142405]
[1767768609665,0.09168,92763.0,92740.0,0.09486042]
[1767768609666,0.010787,92757.0,92740.0,0.09486042]
[1767768609867,0.010787,92757.0,92741.0,0.09486042]
[1767768610066,0.010788,92755.0,92741.0,0.09486042]
[1767768610266,0.010788,92752.0,92741.0,0.09486042]
[1767768611369,0.010788,92749.0,92741.0,0.09486042]
[1767768612675,0.010788,92753.0,92741.0,0.09486042]
[1767768614179,0.12195618,92761.0,92741.0,0.09486042]
[1767768614180,0.010788,92751.0,92741.0,0.09486042]
[1767768614972,0.010785,92777.0,92741.0,0.09486042]
[1767768615177,0.02313038,92773.0,92750.0,0.18628447]
[1767768615374,0.010787,92760.0,92750.0,0.18628447]
[1767768615882,0.010787,92760.0,92750.0,0.17840228]
[1767768616272,0.010787,92760.0,92750.0,0.19002571]
[1767768619573,0.010787,92760.0,92750.0,0.24806131]
[1767768619778,0.010787,92763.0,92750.0,0.24806131]
[1767768621771,0.12195618,92771.0,92750.0,0.06965903]
[1767768621772,0.0988258,92766.0,92750.0,0.06965903]
[1767768621975,0.010787,92757.0,92745.0,0.09168]
[1767768622386,0.010787,92757.0,92745.0,0.10282828]
[1767768622596,0.010787,92757.0,92745.0,0.16248067]
[1767768627101,0.09168,92772.0,92756.0,0.09486042]
[1767768627300,0.09168,92772.0,92760.0,0.09142405]
[1767768627598,0.010786,92769.0,92760.0,0.09142405]
[1767768634703,0.010786,92772.0,92760.0,0.09142405]
[1767768635002,0.102466,92772.0,92760.0,0.09142405]
[1767768642406,0.010789,92743.0,92729.0,0.00215683]
[1767768642611,0.09118326,92735.0,92716.0,0.015]
[1767768642800,0.01079,92731.0,92716.0,0.01814976]
[1767768642996,0.01079,92731.0,92717.0,0.00421976]
[1767768643402,0.010791,92727.0,92720.0,5e-08]
[1767768643607,0.010791,92727.0,92717.0,0.00421976]
[1767768643608,0.010791,92727.0,92717.0,0.09564381]
[1767768643807,0.010791,92727.0,92717.0,0.00421976]
[1767768646910,0.09118326,92735.0,92717.0,0.00421976]
[1767768648206,0.010791,92729.0,92717.0,0.00421976]
[1767768652611,0.010791,92729.0,92719.0,0.09142405]
[1767768654319,0.19426778,92815.0,92719.0,0.09142405]
[1767768654320,0.01079,92735.0,92725.0,0.01433104]
[1767768654524,0.01079,92732.0,92720.0,0.01406187]
[1767768655108,0.01079,92735.0,92720.0,0.01406187]
[1767768656419,0.01079,92736.0,92723.0,0.01406693]
[1767768657618,0.1122127,92733.0,92716.0,0.01393]
[1767768657916,0.010791,92730.0,92716.0,0.01393]
[1767768658314,0.010791,92730.0,92716.0,0.41393]
[1767768658516,0.09118326,92731.0,92716.0,0.41393]
[1767768658717,0.010791,92727.0,92716.0,0.01393]
[1767768659712,0.010791,92727.0,92717.0,0.01332755]
[1767768660021,0.010791,92727.0,92716.0,0.01393]
[1767768660625,0.09451676,92727.0,92712.0,0.05868063]
[1767768660923,0.09451676,92717.0,92706.0,0.09172]
[1767768661123,0.09451676,92717.0,92690.0,0.09142405]
[1767768661124,0.02373411,92712.0,92695.0,0.09172]
[1767768661307,0.09451676,92710.0,92699.0,0.01316405]
[1767768661508,0.09451676,92710.0,92699.0,0.00215753]
[1767768661709,0.010793,92711.0,92700.0,0.09142405]
[1767768662017,0.010793,92711.0,92699.0,0.00215753]
[1767768663222,0.09457513,92710.0,92699.0,0.00215753]
[1767768664219,0.10536813,92709.0,92699.0,0.00215753]
[1767768667924,0.09457513,92709.0,92699.0,0.00215753]
[1767768670622,0.010793,92708.0,92699.0,0.00215753]
[1767768671316,0.010793,92708.0,92696.0,0.01145313]
[1767768671516,0.010793,92708.0,92695.0,0.09172]
[1767768671718,0.09172,92714.0,92695.0,0.09172]
[1767768672029,0.09172,92715.0,92695.0,0.09172]
[1767768672223,0.010793,92706.0,92695.0,0.09172]
[1767768672414,0.09172,92715.0,92695.0,0.10283346]
[1767768673134,0.010793,92706.0,92695.0,0.10283346]
[1767768673320,0.09172,92715.0,92695.0,0.10283346]
[1767768673725,0.010793,92707.0,92695.0,0.10283346]
[1767768674024,0.11969386,92711.0,92695.0,0.10283346]
[1767768674225,0.09172,92715.0,92695.0,0.10283346]
[1767768675124,0.010793,92710.0,92695.0,0.10283346]
[1767768675314,0.09172,92715.0,92695.0,0.10283346]
[1767768676127,0.010793,92710.0,92695.0,0.10283346]
[1767768676314,0.02511873,92713.0,92695.0,0.10283346]
[1767768677228,0.010793,92710.0,92695.0,0.10283346]
[1767768677426,0.02511873,92713.0,92695.0,0.10283346]
[1767768679226,0.010793,92710.0,92695.0,0.10283346]
[1767768679427,0.02511873,92713.0,92695.0,0.12676969]
[1767768680327,0.010794,92700.0,92695.0,0.10283346]
[1767768680524,0.02511873,92710.0,92695.0,0.01111346]
[1767768680732,0.02511873,92709.0,92694.0,0.00661728]
[1767768681029,0.09457513,92710.0,92694.0,0.00661728]
[1767768681828,0.02511873,92712.0,92694.0,0.00661728]
[1767768682225,0.010793,92710.0,92694.0,0.00661728]
[1767768683828,0.010793,92710.0,92695.0,0.02393623]
[1767768693341,0.010792,92720.0,92703.0,0.02814434]
[1767768693534,0.09919213,92728.0,92709.0,0.02814434]
[1767768693733,0.00215683,92729.0,92714.0,0.12411593]
[1767768693940,0.010787,92757.0,92704.0,0.16091606]
[1767768693941,0.09172,92736.0,92721.0,0.12411593]
[1767768694238,0.12678331,92747.0,92727.0,0.02814434]
[1767768694546,0.09172,92741.0,92726.0,0.09597159]
[1767768695944,0.09172,92741.0,92723.0,0.02814434]
[1767768697143,0.09172,92741.0,92724.0,0.12411593]
[1767768697444,0.09172,92741.0,92725.0,0.02814434]
[1767768699442,0.09172,92741.0,92727.0,0.02814434]
[1767768699845,0.09172,92745.0,92727.0,0.02814434]
[1767768701246,0.1003,92751.0,92728.0,0.09597159]
[1767768701431,0.09919213,92774.0,92728.0,0.09597159]
[1767768701432,0.09919213,92770.0,92751.0,0.02814434]
[1767768701637,0.02759118,92772.0,92751.0,0.02814434]
[1767768701940,0.02759118,92769.0,92750.0,0.09172]
[1767768702136,0.02759118,92769.0,92749.0,0.09172]
[1767768702333,0.02759118,92766.0,92749.0,0.09172]
[1767768703131,0.02759118,92764.0,92749.0,0.09172]
[1767768703332,0.02759118,92762.0,92749.0,0.09172]
[1767768703537,0.09919213,92760.0,92749.0,0.09172]
[1767768703745,0.02759118,92761.0,92749.0,0.09172]
[1767768704349,0.02759118,92761.0,92742.0,0.11986434]
[1767768704549,0.02759118,92761.0,92742.0,0.17773882]
[1767768704755,0.02759118,92761.0,92743.0,0.16154284]
[1767768710060,0.010787,92760.0,92743.0,0.16154284]
[1767768710866,0.03837818,92760.0,92743.0,0.16154284]
[1767768711262,0.010787,92760.0,92743.0,0.16154284]
[1767768712769,0.12678331,92757.0,92743.0,0.16154284]
[1767768712966,0.010788,92750.0,92742.0,0.05787448]
[1767768713172,0.010788,92750.0,92735.0,0.09168]
[1767768713667,0.010788,92750.0,92735.0,0.15211619]
[1767768714768,0.09919213,92753.0,92735.0,0.15211619]
[1767768715066,0.010788,92750.0,92735.0,0.15211619]
[1767768715254,0.010788,92750.0,92735.0,0.18026053]
[1767768718472,0.09919213,92753.0,92735.0,0.18026053]
[1767768719272,0.010788,92750.0,92735.0,0.18026053]
[1767768721567,0.010788,92750.0,92735.0,0.15211619]
[1767768721772,0.010788,92750.0,92736.0,0.03093954]
[1767768722368,0.010788,92753.0,92736.0,0.03093954]
[1767768722571,0.010788,92753.0,92737.0,0.03093954]
[1767768722769,0.010788,92753.0,92740.0,0.03093954]
[1767768726082,0.010788,92756.0,92740.0,0.03093954]
[1767768728174,0.010788,92756.0,92741.0,0.03093954]
[1767768732685,0.010788,92754.0,92741.0,0.03093954]
[1767768735096,0.010788,92754.0,92741.0,0.12639642]
[1767768737085,0.010788,92749.0,92737.0,0.03093954]
[1767768737285,0.03155271,92757.0,92737.0,0.03093954]
[1767768737485,0.03155271,92755.0,92735.0,0.24757307]
[1767768737679,0.03155271,92755.0,92736.0,0.03093954]
[1767768737885,0.010788,92751.0,92736.0,0.03093954]
[1767768738281,0.010788,92751.0,92737.0,0.03093954]
[1767768739686,0.010788,92751.0,92738.0,0.03093954]
[1767768742089,0.010788,92749.0,92738.0,0.03093954]
[1767768742295,0.0944355,92756.0,92738.0,0.03093954]
[1767768742791,0.12598821,92756.0,92737.0,0.09545688]
[1767768743191,0.010788,92749.0,92737.0,0.09545688]
[1767768743581,0.010789,92740.0,92735.0,1.9e-07]
[1767768743786,0.01079,92738.0,92731.0,0.05899685]
[1767768744098,0.03155271,92737.0,92724.0,0.08513717]
[1767768744395,0.03155271,92735.0,92716.0,0.015]
[1767768744784,0.03155271,92735.0,92717.0,0.16218734]
[1767768745094,0.01079,92736.0,92720.0,0.12235854]
[1767768745280,0.01079,92736.0,92721.0,0.03093954]
[1767768745482,0.01079,92736.0,92721.0,0.19312688]
[1767768746089,0.010789,92739.0,92723.0,0.12639642]
[1767768746392,0.010789,92739.0,92727.0,0.03093954]
[1767768751292,0.010789,92739.0,92726.0,0.09545688]
[1767768751493,0.010789,92739.0,92723.0,0.03093954]
[1767768753704,0.010789,92739.0,92725.0,0.03350502]
[1767768754499,0.010789,92742.0,92728.0,0.03350502]
[1767768754705,0.09168,92741.0,92729.0,0.03350502]
[1767768756805,0.010789,92740.0,92729.0,0.03350502]
[1767768761408,0.01079,92738.0,92729.0,0.03350502]
[1767768761607,0.01079,92738.0,92728.0,0.09469368]
[1767768763512,0.01079,92736.0,92728.0,0.09469368]
[1767768763711,0.01079,92736.0,92725.0,0.03350502]
[1767768765114,0.01079,92738.0,92725.0,0.03350502]
[1767768766110,0.09313914,92758.0,92738.0,0.03350502]
[1767768766305,0.010789,92742.0,92727.0,0.09469368]
[1767768766503,0.01079,92735.0,92726.0,0.09172]
[1767768767916,0.00116668,92731.0,92726.0,0.09172]
[1767768768111,0.01079,92735.0,92726.0,0.09172]
[1767768768517,0.21505568,92740.0,92721.0,0.12154616]
[1767768768917,0.01079,92735.0,92721.0,0.12154616]
[1767768769121,0.01079,92735.0,92722.0,0.03350502]
[1767768772330,0.01079,92735.0,92722.0,0.01950502]
[1767768772719,0.01079,92733.0,92722.0,0.01950502]
[1767768774938,0.01079,92733.0,92721.0,0.08804114]
[1767768775139,0.01079,92733.0,92718.0,0.12217854]
[1767768776039,0.01079,92733.0,92719.0,0.03014481]
[1767768777342,0.01079,92733.0,92719.0,0.1177908]
[1767768778832,0.03049754,92738.0,92719.0,0.08764599]
[1767768779035,0.010791,92729.0,92718.0,0.09172]
[1767768779336,0.12363668,92738.0,92718.0,0.12040932]
[1767768779538,0.091419,92730.0,92718.0,0.09172]
[1767768779733,0.12244655,92729.0,92716.0,0.07502118]
[1767768780236,0.0912568,92729.0,92716.0,0.07502118]
[1767768780535,0.010791,92724.0,92716.0,0.07502118]
[1767768780738,0.010792,92721.0,92711.0,0.09172]